{"text_format":"3","workbook":"xlsx","n_sheets":1,"sheets":["LISTĂ DE INVENTAR ECHIPAMENT"],"not_rendered":{"defined_names":5},"read":"whole","date_system":"1900"}

{"sheet":"LISTĂ DE INVENTAR ECHIPAMENT","index":0,"n_rows":9,"n_cols":19,"rows_kept":9,"merged":[[0,1,0,5],[0,6,0,9],[0,10,0,12],[0,13,0,14],[2,1,2,6],[2,7,2,18]]}
[null,"LISTĂ DE INVENTAR ECHIPAMENT"]
[]
[null,"STARE FIZICĂ",{"$nulls":5},"SITUAȚIE FINANCIARĂ"]
[null,"Număr activ sau de serie","Descriere articol (marcă și model)","Locație","Stare","Distribuitor","Ani de funcționare rămași ","Valoare inițială","Avans","Data achiziționării sau închirierii","Perioada de împrumut în ani","Rată împrumut","Plata lunară","Costuri operaționale lunare","Cost lunar total","Valoare estimată la sfârșitul perioadei de împrumut","Amortizare anuală liniară","Amortizare lunară liniară","Valoare curentă"]
[null,123,"Marcă Model","Sucursală principală","Bună","local",5,{"v":90000,"d":"90,000.00 lei"},{"v":15000,"d":"15,000.00 lei"},{"$f":"DATE(YEAR(TODAY())-2, 1,1)","v":"2016-01-01"},4,{"v":0.1,"d":"10.00%"},{"$f":"IFERROR(IF(AND(Date[[#This Row],[Valoare inițială]]>0,Date[[#This Row],[Valoare inițială]]<>Date[[#This Row],[Avans]]),-1*PMT(Date[[#This Row],[Rată împrumut]]/12,Date[[#This Row],[Perioada de împrumut în ani]]*12,Date[[#This Row],[Valoare inițială]]-Date[[#This Row],[Avans]]),0),0)","v":{"v":1902.193757606039,"d":"1,902.19 lei"}},{"v":600,"d":"600.00 lei"},{"$f":"IFERROR(Date[[#This Row],[Costuri operaționale lunare]]+Date[[#This Row],[Plata lunară]],\"\")","v":{"v":2502.193757606039,"d":"2,502.19 lei"}},{"v":60000,"d":"60,000.00 lei"},{"$f":"IFERROR(IF(Date[[#This Row],[Valoare inițială]]>0,SLN(Date[[#This Row],[Valoare inițială]],Date[[#This Row],[Valoare estimată la sfârșitul perioadei de împrumut]],Date[[#This Row],[Ani de funcționare rămași ]]),0),0)","v":{"v":6000,"d":"6,000.00 lei"}},{"$f":"IFERROR(Date[[#This Row],[Amortizare anuală liniară]]/12,0)","v":{"v":500,"d":"500.00 lei"}},{"$f":"IFERROR(Date[[#This Row],[Valoare inițială]]-(Date[[#This Row],[Amortizare anuală liniară]]*((TODAY()-Date[[#This Row],[Data achiziționării sau închirierii]])/365)),0)","v":{"v":75041.09589041096,"d":"75,041.10 lei"}}]
[null,456,"Marcă Model","Sucursală principală","Excelentă","local",3,{"v":15000,"d":"15,000.00 lei"},{"v":15000,"d":"15,000.00 lei"},{"$f":"DATE(YEAR(TODAY())-1, 1,1)","v":"2017-01-01"},null,null,{"$f":"IFERROR(IF(AND(Date[[#This Row],[Valoare inițială]]>0,Date[[#This Row],[Valoare inițială]]<>Date[[#This Row],[Avans]]),-1*PMT(Date[[#This Row],[Rată împrumut]]/12,Date[[#This Row],[Perioada de împrumut în ani]]*12,Date[[#This Row],[Valoare inițială]]-Date[[#This Row],[Avans]]),0),0)","v":{"v":0,"d":"0.00 lei"}},{"v":60,"d":"60.00 lei"},{"$f":"IFERROR(Date[[#This Row],[Costuri operaționale lunare]]+Date[[#This Row],[Plata lunară]],\"\")","v":{"v":60,"d":"60.00 lei"}},null,{"$f":"IFERROR(IF(Date[[#This Row],[Valoare inițială]]>0,SLN(Date[[#This Row],[Valoare inițială]],Date[[#This Row],[Valoare estimată la sfârșitul perioadei de împrumut]],Date[[#This Row],[Ani de funcționare rămași ]]),0),0)","v":{"v":5000,"d":"5,000.00 lei"}},{"$f":"IFERROR(Date[[#This Row],[Amortizare anuală liniară]]/12,0)","v":{"v":416.6666666666667,"d":"416.67 lei"}},{"$f":"IFERROR(Date[[#This Row],[Valoare inițială]]-(Date[[#This Row],[Amortizare anuală liniară]]*((TODAY()-Date[[#This Row],[Data achiziționării sau închirierii]])/365)),0)","v":{"v":7547.945205479452,"d":"7,547.95 lei"}}]
[null,789,"Marcă Model","Zona de est","Acceptabilă","local",6,{"v":150000,"d":"150,000.00 lei"},{"v":60000,"d":"60,000.00 lei"},{"$f":"TODAY()","v":"2018-06-29"},5,{"v":0.05,"d":"5.00%"},{"$f":"IFERROR(IF(AND(Date[[#This Row],[Valoare inițială]]>0,Date[[#This Row],[Valoare inițială]]<>Date[[#This Row],[Avans]]),-1*PMT(Date[[#This Row],[Rată împrumut]]/12,Date[[#This Row],[Perioada de împrumut în ani]]*12,Date[[#This Row],[Valoare inițială]]-Date[[#This Row],[Avans]]),0),0)","v":{"v":1698.4110279609843,"d":"1,698.41 lei"}},{"v":120,"d":"120.00 lei"},{"$f":"IFERROR(Date[[#This Row],[Costuri operaționale lunare]]+Date[[#This Row],[Plata lunară]],\"\")","v":{"v":1818.4110279609843,"d":"1,818.41 lei"}},{"v":4500,"d":"4,500.00 lei"},{"$f":"IFERROR(IF(Date[[#This Row],[Valoare inițială]]>0,SLN(Date[[#This Row],[Valoare inițială]],Date[[#This Row],[Valoare estimată la sfârșitul perioadei de împrumut]],Date[[#This Row],[Ani de funcționare rămași ]]),0),0)","v":{"v":24250,"d":"24,250.00 lei"}},{"$f":"IFERROR(Date[[#This Row],[Amortizare anuală liniară]]/12,0)","v":{"v":2020.8333333333333,"d":"2,020.83 lei"}},{"$f":"IFERROR(Date[[#This Row],[Valoare inițială]]-(Date[[#This Row],[Amortizare anuală liniară]]*((TODAY()-Date[[#This Row],[Data achiziționării sau închirierii]])/365)),0)","v":{"v":150000,"d":"150,000.00 lei"}}]
[{"$nulls":12},{"$f":"IFERROR(IF(AND(Date[[#This Row],[Valoare inițială]]>0,Date[[#This Row],[Valoare inițială]]<>Date[[#This Row],[Avans]]),-1*PMT(Date[[#This Row],[Rată împrumut]]/12,Date[[#This Row],[Perioada de împrumut în ani]]*12,Date[[#This Row],[Valoare inițială]]-Date[[#This Row],[Avans]]),0),0)","v":{"v":0,"d":"0.00 lei"}},null,{"$f":"IFERROR(Date[[#This Row],[Costuri operaționale lunare]]+Date[[#This Row],[Plata lunară]],\"\")","v":{"v":0,"d":"0.00 lei"}},null,{"$f":"IFERROR(IF(Date[[#This Row],[Valoare inițială]]>0,SLN(Date[[#This Row],[Valoare inițială]],Date[[#This Row],[Valoare estimată la sfârșitul perioadei de împrumut]],Date[[#This Row],[Ani de funcționare rămași ]]),0),0)","v":{"v":0,"d":"0.00 lei"}},{"$f":"IFERROR(Date[[#This Row],[Amortizare anuală liniară]]/12,0)","v":{"v":0,"d":"0.00 lei"}},{"$f":"IFERROR(Date[[#This Row],[Valoare inițială]]-(Date[[#This Row],[Amortizare anuală liniară]]*((TODAY()-Date[[#This Row],[Data achiziționării sau închirierii]])/365)),0)","v":{"v":0,"d":"0.00 lei"}}]
[{"$nulls":12},{"$f":"IFERROR(IF(AND(Date[[#This Row],[Valoare inițială]]>0,Date[[#This Row],[Valoare inițială]]<>Date[[#This Row],[Avans]]),-1*PMT(Date[[#This Row],[Rată împrumut]]/12,Date[[#This Row],[Perioada de împrumut în ani]]*12,Date[[#This Row],[Valoare inițială]]-Date[[#This Row],[Avans]]),0),0)","v":{"v":0,"d":"0.00 lei"}},null,{"$f":"IFERROR(Date[[#This Row],[Costuri operaționale lunare]]+Date[[#This Row],[Plata lunară]],\"\")","v":{"v":0,"d":"0.00 lei"}},null,{"$f":"IFERROR(IF(Date[[#This Row],[Valoare inițială]]>0,SLN(Date[[#This Row],[Valoare inițială]],Date[[#This Row],[Valoare estimată la sfârșitul perioadei de împrumut]],Date[[#This Row],[Ani de funcționare rămași ]]),0),0)","v":{"v":0,"d":"0.00 lei"}},{"$f":"IFERROR(Date[[#This Row],[Amortizare anuală liniară]]/12,0)","v":{"v":0,"d":"0.00 lei"}},{"$f":"IFERROR(Date[[#This Row],[Valoare inițială]]-(Date[[#This Row],[Amortizare anuală liniară]]*((TODAY()-Date[[#This Row],[Data achiziționării sau închirierii]])/365)),0)","v":{"v":0,"d":"0.00 lei"}}]